bitfinex/quotes_SOLUSD_20251231
["timestamp","ask_amount","ask_price","bid_price","bid_amount"]
[1767207831462,0.69710882,125.14,125.1,5.67605093]
[1767207831882,0.69710882,125.14,125.11,0.68362353]
[1767207832062,5.68953622,125.14,125.11,0.68362353]
[1767207833058,0.69373256,125.13,125.09,0.68362353]
[1767207833375,0.69373256,125.14,125.11,5.67605093]
[1767207834683,4.9924274,125.14,125.1,4.9924274]
[1767207834847,4.9924274,125.14,125.06,81.99000546]
[1767207834848,4.9924274,125.13,125.09,5.67605093]
[1767207835052,0.2,125.15,125.06,68.68495313]
[1767207835053,0.69373256,125.11,125.08,0.68362353]
[1767207835252,0.69373256,125.11,125.08,5.67605093]
[1767207835557,5.68615996,125.12,125.09,0.68362353]
[1767207837189,0.69373256,125.12,125.09,0.68362353]
[1767207842078,5.68615996,125.12,125.09,0.68362353]
[1767207843586,4.9924274,125.12,125.09,0.68362353]
[1767207844896,0.69373256,125.11,125.08,4.9924274]
[1767207845194,5.68615996,125.12,125.09,0.68362353]
[1767207855396,0.69373256,125.11,125.08,0.68362353]
[1767207855597,0.69373256,125.11,125.08,4.9924274]
[1767207855898,5.68615996,125.12,125.09,0.68362353]
[1767207858001,0.69373256,125.12,125.09,0.68362353]
[1767207858189,5.68615996,125.12,125.09,0.68362353]
[1767207867313,0.69373256,125.12,125.09,0.68362353]
[1767207871011,0.67120614,125.14,125.1,3.19676833]
[1767207871306,0.67120614,125.14,125.11,0.66660535]
[1767207874812,0.67120614,125.13,125.11,0.66660535]
[1767207878797,0.67120614,125.13,125.07,14.73753127]
[1767207878798,6.64123167,125.12,125.08,0.66660535]
[1767207878997,3.86797447,125.12,125.09,0.66660535]
[1767207880623,0.67120614,125.12,125.09,0.66660535]
[1767207882914,3.86797447,125.12,125.09,0.66660535]
[1767207883119,42.65069093,125.15,125.09,3.86337368]
[1767207883422,3.19676833,125.13,125.1,0.66660535]
[1767207883615,3.86797447,125.13,125.1,0.66660535]
[1767207885415,3.19676833,125.13,125.1,0.66660535]
[1767207885916,3.86797447,125.14,125.1,0.66660535]
[1767207886216,6.6395308,125.13,125.1,0.66660535]
[1767207886422,0.67120614,125.13,125.1,0.66660535]
[1767207891031,3.90212514,125.12,125.07,0.67177302]
[1767207891207,6.66886218,125.11,125.08,0.67177302]
[1767207891523,0.70535681,125.11,125.08,0.67177302]
[1767207896327,0.70535681,125.11,125.08,3.19676833]
[1767207896529,0.70535681,125.11,125.09,0.67177302]
[1767207900333,3.90212514,125.1,125.06,0.67177302]
[1767207900534,0.70535681,125.11,125.08,3.86854135]
[1767207901430,0.70535681,125.11,125.09,0.67177302]
[1767207902432,34.45999848,125.13,125.09,0.67177302]
[1767207902642,5.96687248,125.12,125.1,0.67177302]
[1767207902938,0.70535681,125.14,125.11,0.67177302]
[1767207903117,0.70535681,125.14,125.12,0.67177302]
[1767207903650,0.90535681,125.15,125.12,0.67177302]
[1767207903811,5.96659077,125.14,125.12,3.86854135]
[1767207904011,0.90535681,125.15,125.12,0.67177302]
[1767207904222,0.90535681,125.15,125.12,3.86854135]
[1767207905739,0.90535681,125.15,125.12,0.67177302]
[1767207907340,5.96244963,125.14,125.12,0.67177302]
[1767207907546,0.90535681,125.15,125.12,0.67177302]
[1767207909754,0.70535681,125.12,125.07,6.7497525]
[1767207910045,3.90212514,125.1,125.07,0.67177302]
[1767207910217,3.90212514,125.11,125.07,0.67177302]
[1767207911047,5.9645994,125.1,125.07,0.67177302]
[1767207911219,3.90212514,125.1,125.07,0.67177302]
[1767207911422,5.96340805,125.09,125.07,0.67177302]
[1767207911637,3.90212514,125.1,125.07,0.67177302]
[1767207911819,5.96347595,125.09,125.07,0.67177302]
[1767207912031,3.19676833,125.1,125.07,0.67177302]
[1767207912227,9.8652474,125.09,125.06,0.67177302]
[1767207912428,3.90212514,125.09,125.06,0.67177302]
[1767207912729,0.70535681,125.09,125.06,0.67177302]
[1767207913050,3.19676833,125.09,125.06,0.67177302]
[1767207913347,3.90212514,125.1,125.06,0.67177302]
[1767207913546,5.95876711,125.09,125.06,0.67177302]
[1767207913747,3.90212514,125.1,125.06,0.67177302]
[1767207913949,5.95876711,125.09,125.06,0.67177302]
[1767207914151,3.90212514,125.08,125.05,0.67177302]
[1767207914320,3.90212514,125.09,125.06,0.67177302]
[1767207914524,5.95718037,125.08,125.06,0.67177302]
[1767207914743,3.90212514,125.09,125.06,0.67177302]
[1767207914942,5.95718486,125.08,125.06,0.67177302]
[1767207915253,0.70535681,125.09,125.06,0.67177302]
[1767207915426,5.95606129,125.08,125.06,0.67177302]
[1767207915723,0.70535681,125.09,125.06,0.67177302]
[1767207916053,5.95606129,125.08,125.06,0.67177302]
[1767207916346,0.70535681,125.09,125.06,0.67177302]
[1767207916550,5.95492505,125.08,125.06,0.67177302]
[1767207916727,0.70535681,125.09,125.06,0.67177302]
[1767207916918,5.95550692,125.08,125.06,0.67177302]
[1767207917244,3.90212514,125.1,125.06,0.67177302]
[1767207917422,5.95507328,125.09,125.06,0.67177302]
[1767207917624,3.90212514,125.1,125.07,0.67177302]
[1767207917824,5.95507667,125.09,125.07,0.67177302]
[1767207918024,3.90212514,125.1,125.07,0.67177302]
[1767207918225,5.95472321,125.09,125.07,0.67177302]
[1767207918424,3.90212514,125.11,125.07,0.67177302]
[1767207918630,5.95482563,125.1,125.07,0.67177302]
[1767207918931,5.95482563,125.09,125.08,0.67177302]
[1767207919453,3.90212514,125.11,125.08,0.67177302]
[1767207919643,5.95485254,125.1,125.08,0.67177302]
[1767207919831,3.90212514,125.11,125.08,0.67177302]
[1767207920031,5.95485178,125.1,125.08,0.67177302]
[1767207920254,3.90212514,125.11,125.08,0.67177302]
[1767207920457,5.95487959,125.1,125.08,0.67177302]
[1767207920661,0.70535681,125.11,125.08,0.67177302]
[1767207920837,5.95488034,125.1,125.08,0.67177302]
[1767207921137,3.90212514,125.11,125.08,0.67177302]
[1767207921335,5.95494521,125.1,125.08,0.67177302]
[1767207921537,3.90212514,125.11,125.08,0.67177302]
[1767207921838,5.95494521,125.1,125.08,0.67177302]
[1767207922038,3.90212514,125.11,125.08,0.67177302]
[1767207922239,5.95503665,125.1,125.08,0.67177302]
[1767207922446,3.90212514,125.11,125.08,0.67177302]
[1767207922758,3.91782951,125.13,125.09,0.69792882]
[1767207923055,5.95505352,125.12,125.09,3.89469715]
[1767207923258,3.91782951,125.13,125.1,0.69792882]
[1767207923259,0.72106118,125.13,125.1,0.69792882]
[1767207923455,5.95555187,125.12,125.1,0.69792882]
[1767207923759,0.72106118,125.13,125.1,0.69792882]
[1767207923942,5.95555667,125.12,125.1,0.69792882]
[1767207924139,5.95538534,125.11,125.1,0.69792882]
[1767207924544,0.72106118,125.13,125.1,0.69792882]
[1767207924746,5.95551468,125.12,125.1,0.69792882]
[1767207924948,0.72106118,125.13,125.1,0.69792882]
[1767207925150,5.95551948,125.12,125.1,0.69792882]
[1767207925358,5.95551948,125.11,125.1,0.69792882]
[1767207927158,0.72106118,125.13,125.1,3.89469715]
[1767207927461,5.95647811,125.12,125.1,3.89469715]
[1767207927646,0.72106118,125.13,125.1,3.89469715]
[1767207927846,5.9567737,125.12,125.1,3.89469715]
[1767207928036,0.72106118,125.13,125.1,3.89469715]
[1767207928238,5.95670007,125.12,125.1,3.89469715]
[1767207928444,0.72106118,125.13,125.1,3.89469715]
[1767207928645,5.95611671,125.12,125.1,3.89469715]
[1767207928863,0.72106118,125.13,125.1,3.89469715]
[1767207929159,5.95609877,125.12,125.1,3.89469715]
[1767207929364,0.72106118,125.13,125.1,3.89469715]
[1767207929657,5.95608151,125.12,125.1,3.89469715]
[1767207929856,0.72106118,125.13,125.1,0.69792882]
[1767207930163,5.95595297,125.12,125.1,0.69792882]
[1767207931956,5.95595297,125.12,125.1,5.69221005]
[1767207933161,5.95595297,125.12,125.11,5.69221005]
[1767207933760,0.72106118,125.14,125.11,5.69221005]
[1767207933958,5.95281119,125.13,125.11,5.69221005]
[1767207934166,0.72106118,125.14,125.12,0.69792882]
[1767207934362,5.22498067,125.13,125.11,4.99428123]
[1767207934546,0.92106118,125.15,125.12,0.50103217]
[1767207935062,0.72106118,125.14,125.11,4.99428123]
[1767207943082,5.71534241,125.14,125.06,6.7497525]
[1767207943248,0.72106118,125.1,125.07,4.99428123]
[1767207943448,0.72106118,125.13,125.08,4.99428123]
[1767207943652,0.72106118,125.11,125.08,4.99428123]
[1767207943966,0.72106118,125.11,125.09,4.99428123]
[1767207944171,0.72106118,125.11,125.08,4.99428123]
[1767207947272,5.94740972,125.1,125.08,4.99428123]
[1767207947478,5.71534241,125.11,125.07,4.99428123]
[1767207948578,0.72106118,125.11,125.07,4.99428123]
[1767207949081,5.94724289,125.1,125.07,4.99428123]
[1767207949377,0.72106118,125.1,125.07,4.99428123]
[1767207952106,0.72106118,125.1,125.05,7.99633434]
[1767207952289,0.72106118,125.1,125.07,4.99428123]
[1767207952682,0.72106118,125.1,125.05,7.99633434]
[1767207952866,0.72106118,125.1,125.07,4.99428123]
[1767207953870,6.64534047,125.09,125.06,4.99428123]
[1767207954182,0.69656575,125.09,125.06,4.99428123]
[1767207958191,0.69656575,125.09,125.05,4.99428123]
[1767207960191,4.99428123,125.11,125.06,4.99428123]
[1767207960390,0.69656575,125.09,125.06,4.99428123]
[1767207967503,5.69084698,125.09,125.04,14.62]
[1767207967688,0.69656575,125.07,125.03,4.99428123]
[1767207967875,0.69656575,125.11,125.06,4.99428123]
[1767207968199,0.69656575,125.11,125.09,4.99428123]
[1767207978886,0.69656575,125.11,125.08,4.99428123]
[1767207980601,0.69397392,125.09,125.06,4.99428123]
[1767207980805,0.69397392,125.09,125.06,19.61428123]
[1767207982125,0.69397392,125.09,125.07,4.99428123]
[1767207986503,22.61140057,125.14,125.07,4.99428123]
[1767207986718,0.69397392,125.11,125.07,4.99428123]
[1767207987018,6.65276378,125.1,125.07,4.99428123]
[1767207987194,0.69397392,125.1,125.07,4.99428123]
[1767207988816,0.69397392,125.1,125.08,4.99428123]
[1767207989114,5.95279803,125.09,125.08,4.99428123]
[1767207989307,5.95300215,125.09,125.07,4.99428123]
[1767207989510,0.69397392,125.1,125.07,4.99428123]
[1767207989818,5.95320509,125.09,125.07,4.99428123]
[1767207990019,0.69397392,125.1,125.07,4.99428123]
[1767207990206,5.95320509,125.09,125.07,4.99428123]
[1767207990405,0.69397392,125.1,125.07,4.99428123]
[1767207990617,5.95416054,125.09,125.07,4.99428123]
[1767207990816,0.69397392,125.1,125.07,4.99428123]
[1767207991018,5.95386886,125.09,125.07,4.99428123]
[1767207991219,0.69397392,125.1,125.07,4.99428123]
[1767207991422,5.95395321,125.09,125.07,4.99428123]
[1767207991614,0.69397392,125.1,125.07,4.99428123]
[1767207991814,5.95395321,125.09,125.07,4.99428123]
[1767207992119,0.69397392,125.1,125.07,4.99428123]
[1767207992319,5.95421213,125.09,125.07,4.99428123]
[1767207992505,0.69397392,125.1,125.07,4.99428123]
[1767207992506,0.69397392,125.1,125.07,3.19720985]
[1767207992706,5.95433829,125.09,125.07,3.19720985]
[1767207992925,0.69397392,125.1,125.07,3.19720985]
[1767207993113,5.95433754,125.09,125.07,3.19720985]
[1767207993296,0.69397392,125.1,125.07,3.19720985]
[1767207994417,5.95457155,125.09,125.07,3.19720985]
[1767207994725,0.69397392,125.1,125.07,3.19720985]
[1767207995221,0.69397392,125.1,125.08,3.19720985]
[1767207996124,0.69397392,125.1,125.07,3.19720985]
[1767207996322,0.69397392,125.1,125.06,14.62]
[1767207996544,0.69397392,125.08,125.06,17.81720985]
[1767207996723,0.69397392,125.08,125.06,14.62]
[1767207997022,0.69397392,125.08,125.06,17.81720985]
[1767207998021,0.69397392,125.08,125.06,14.62]
[1767207998227,0.69397392,125.08,125.06,17.81720985]
[1767207998727,0.69397392,125.11,125.07,3.19720985]
[1767207998922,0.69397392,125.09,125.07,3.19720985]
[1767208001329,3.19720985,125.12,125.07,3.19720985]
[1767208001534,0.69397392,125.1,125.07,3.19720985]
[1767208002433,0.69397392,125.1,125.08,3.19720985]
[1767208002635,0.69397392,125.12,125.08,3.19720985]
[1767208002826,0.69397392,125.1,125.08,3.19720985]
[1767208004939,0.69397392,125.12,125.08,3.19720985]
[1767208005122,6.64675437,125.11,125.08,3.19720985]
[1767208005323,0.69397392,125.11,125.08,3.19720985]
[1767208006739,0.69397392,125.11,125.09,3.19720985]
[1767208007335,5.95237336,125.1,125.08,3.19720985]
[1767208007519,0.69397392,125.1,125.08,3.19720985]
[1767208009441,0.69397392,125.1,125.06,21.3697525]
[1767208009639,0.69397392,125.1,125.08,3.19720985]
[1767208011145,0.69397392,125.1,125.07,3.19720985]
[1767208011343,0.65351988,125.08,125.07,3.19720985]
[1767208011547,0.65351988,125.1,125.07,3.19720985]
[1767208011845,6.6057778,125.09,125.07,3.19720985]
[1767208012046,0.65351988,125.09,125.07,3.19720985]
[1767208012841,0.65351988,125.09,125.06,17.81720985]
[1767208014538,5.95154664,125.08,125.06,17.81720985]
[1767208014849,0.65351988,125.09,125.06,14.62]
[1767208015045,6.60518279,125.08,125.06,14.62]
[1767208015247,0.65351988,125.08,125.06,14.62]
[1767208015548,0.65351988,125.08,125.06,17.81720985]
[1767208015842,0.65351988,125.08,125.05,3.19720985]
[1767208016044,5.95024969,125.07,125.04,17.81720985]
[1767208016244,0.65351988,125.06,125.04,17.81720985]
[1767208017126,0.65351988,125.09,125.05,3.19720985]
[1767208017325,5.94881047,125.08,125.06,3.19720985]
[1767208017540,0.65351988,125.09,125.06,3.19720985]
[1767208017847,6.60172764,125.08,125.06,3.19720985]
[1767208018034,0.65351988,125.08,125.06,3.19720985]
[1767208020343,0.65351988,125.08,125.05,3.19720985]
[1767208023360,6.59816259,125.07,125.05,3.19720985]
[1767208023530,0.65351988,125.07,125.05,3.19720985]
[1767208023959,3.19720985,125.1,125.06,3.19720985]
[1767208024161,0.65351988,125.08,125.06,3.19720985]
[1767208026664,0.65351988,125.08,125.04,14.62]
[1767208026870,6.59697763,125.07,125.05,3.19720985]
[1767208027190,0.65351988,125.07,125.05,3.19720985]
[1767208027759,0.65351988,125.07,125.03,7.9980307]
[1767208028063,0.65351988,125.07,125.04,3.19720985]
[1767208029249,0.65351988,125.08,125.05,3.19720985]
[1767208029442,0.65351988,125.08,125.06,3.19720985]
[1767208029634,3.85072973,125.1,125.06,3.19720985]
[1767208029835,0.65351988,125.08,125.06,3.19720985]
[1767208035250,0.65351988,125.11,125.06,3.19720985]
[1767208035451,0.65351988,125.09,125.07,3.19720985]
[1767208036156,0.65351988,125.09,125.06,3.19720985]
[1767208037773,0.65351988,125.11,125.07,3.19720985]
[1767208037965,6.5968037,125.1,125.07,3.19720985]
[1767208038162,5.94328382,125.09,125.08,3.19720985]
[1767208038357,0.65351988,125.1,125.08,3.19720985]
[1767208038978,0.65351988,125.1,125.09,3.19720985]
[1767208044868,0.65351988,125.1,125.08,3.19720985]
[1767208047489,0.65351988,125.1,125.09,3.19720985]
[1767208052490,0.65351988,125.1,125.09,4.99478676]
[1767208053887,0.89979724,125.15,125.09,9.98957352]
[1767208054064,0.2,125.17,125.14,4.99478676]
[1767208054372,5.94658523,125.16,125.14,4.99478676]
[1767208054567,0.2,125.17,125.14,4.99478676]
[1767208054781,5.94334709,125.16,125.14,4.99478676]
[1767208055086,0.2,125.17,125.14,4.99478676]
[1767208055277,5.94334634,125.16,125.14,4.99478676]
[1767208055481,0.2,125.17,125.14,4.99478676]
[1767208055787,5.94076848,125.16,125.14,4.99478676]
[1767208056086,0.69979724,125.16,125.14,4.99478676]
[1767208064895,0.69979724,125.16,125.13,4.99478676]
[1767208066094,0.2,125.17,125.16,0.67298226]
[1767208066397,0.69979724,125.19,125.16,5.66776902]
[1767208067290,0.69979724,125.19,125.16,4.99478676]
[1767208067493,0.69979724,125.18,125.15,4.99478676]
[1767208067684,0.69979724,125.18,125.14,4.99478676]
[1767208068288,0.69979724,125.18,125.14,5.66776902]
[1767208069392,0.69979724,125.18,125.15,4.99478676]
[1767208070904,0.69979724,125.18,125.14,0.67298226]
[1767208070905,0.69979724,125.18,125.14,5.66776902]
[1767208071404,0.69979724,125.18,125.16,4.99478676]
[1767208071607,0.69979724,125.18,125.15,4.99478676]
[1767208072083,0.69979724,125.18,125.14,0.67564379]
[1767208072284,0.69979724,125.18,125.15,4.99478676]
[1767208074195,0.69979724,125.18,125.16,4.99478676]
[1767208076999,35.11501439,125.2,125.17,5.67043055]
[1767208077302,0.65501591,125.19,125.17,4.99478676]
[1767208082113,35.11501439,125.2,125.18,4.99478676]
[1767208082404,35.11501439,125.2,125.17,5.67043055]
[1767208082609,0.65501591,125.19,125.17,5.67043055]
[1767208085481,0.65501591,125.19,125.16,5.67043055]
[1767208086298,0.65501591,125.2,125.17,0.67564379]
[1767208086497,0.65501591,125.2,125.17,5.67043055]
[1767208086702,0.65501591,125.2,125.19,4.99478676]
[1767208087003,4.99478676,125.23,125.2,0.67564379]
[1767208087004,0.65501591,125.23,125.2,0.67564379]
[1767208087235,0.65501591,125.23,125.21,4.99478676]
[1767208088294,0.65501591,125.23,125.2,4.99478676]
[1767208088508,0.1,125.24,125.22,4.99478676]
[1767208093513,0.1,125.24,125.22,3.34478676]
[1767208093908,0.1,125.24,125.23,4.99478676]
[1767208094107,0.75501591,125.24,125.22,4.99478676]
[1767208095716,0.75501591,125.24,125.21,4.99478676]
[1767208095900,0.75501591,125.24,125.21,5.67043055]
[1767208096699,0.75501591,125.24,125.21,0.67564379]
[1767208097006,0.75501591,125.24,125.22,4.99478676]
[1767208097618,0.75501591,125.24,125.21,5.67043055]
[1767208098318,0.75501591,125.24,125.21,4.99478676]
[1767208100220,0.75501591,125.24,125.2,4.99478676]
[1767208100694,0.75501591,125.24,125.2,5.67054359]
[1767208100900,0.75501591,125.24,125.21,4.99478676]
[1767208110820,0.1,125.24,125.23,4.99478676]
[1767208111216,6.02956293,125.24,125.23,4.99478676]
[1767208111421,6.69659643,125.24,125.23,4.99478676]
[1767208111614,0.7670335,125.24,125.22,5.67054359]
[1767208112130,0.7670335,125.24,125.22,4.99478676]
[1767208112314,0.7670335,125.24,125.21,4.99478676]
[1767208112516,0.7670335,125.24,125.2,0.67575683]
[1767208112715,0.7670335,125.24,125.21,4.99478676]
[1767208113631,0.7670335,125.24,125.21,5.67054359]
[1767208114518,0.7670335,125.24,125.21,3.8660948]
[1767208117252,0.7670335,125.24,125.22,3.19033797]
[1767208117829,0.7670335,125.24,125.22,3.8660948]
[1767208118336,0.7670335,125.24,125.22,3.19033797]
[1767208118955,0.7670335,125.24,125.21,3.8660948]
[1767208121066,0.7670335,125.24,125.21,0.67575683]
[1767208121239,0.7670335,125.24,125.21,3.8660948]
[1767208122966,3.19033797,125.23,125.18,0.67575683]
[1767208123262,0.6670335,125.21,125.18,3.8660948]
[1767208125574,0.6670335,125.21,125.18,3.8160948]
[1767208127576,0.6670335,125.21,125.16,22.58946244]
[1767208127577,0.6670335,125.23,125.2,3.19033797]
[1767208127763,0.6670335,125.23,125.21,3.8660948]
[1767208128664,0.1,125.24,125.22,3.19033797]
[1767208128851,0.7670335,125.24,125.22,3.19033797]
[1767208129953,0.7670335,125.24,125.21,0.67575683]
[1767208130271,3.29033797,125.24,125.2,3.19033797]
[1767208130472,0.66468716,125.23,125.2,3.85670991]
[1767208132479,0.66468716,125.23,125.21,3.19033797]
[1767208134470,0.66468716,125.23,125.2,3.85670991]
[1767208136167,3.29033797,125.24,125.18,22.58845941]
[1767208136168,0.76468716,125.24,125.21,3.85670991]
[1767208136373,0.76468716,125.24,125.2,0.66637194]
[1767208136688,0.76468716,125.24,125.21,3.85670991]
[1767208137186,0.1,125.24,125.22,0.66637194]
[1767208137484,0.76468716,125.24,125.21,3.85670991]
[1767208139689,5.96124019,125.23,125.21,3.85670991]
[1767208139893,0.76468716,125.24,125.21,3.85670991]
[1767208140195,5.96124019,125.23,125.21,0.66637194]
[1767208140495,0.76468716,125.24,125.21,0.66637194]
[1767208140689,5.96112785,125.23,125.21,0.66637194]
[1767208140881,0.76468716,125.24,125.21,0.66637194]
[1767208141082,5.96170995,125.23,125.21,0.66637194]
[1767208141274,0.76468716,125.24,125.21,0.66637194]
[1767208141471,5.96159803,125.23,125.21,0.66637194]
[1767208141792,0.76468716,125.24,125.21,0.66637194]
[1767208142093,5.96095002,125.23,125.21,0.66637194]
[1767208142282,0.76468716,125.24,125.2,3.19033797]
[1767208142486,6.6255189,125.23,125.2,3.85670991]
[1767208142689,0.66468716,125.23,125.2,3.85670991]
[1767208144292,0.66468716,125.23,125.21,3.19033797]
[1767208144673,0.66468716,125.23,125.21,3.85670991]
[1767208145893,0.76468716,125.24,125.21,3.85670991]
[1767208146070,5.96043001,125.23,125.21,3.85670991]
[1767208146392,0.76468716,125.24,125.22,3.85670991]
[1767208146597,0.76468716,125.24,125.22,3.19033797]
[1767208147398,0.76468716,125.24,125.21,3.85670991]
[1767208149194,5.95952137,125.23,125.21,3.85670991]
[1767208149376,0.76468716,125.24,125.21,3.85670991]
[1767208150094,0.1,125.24,125.22,3.85670991]
[1767208150881,0.1,125.24,125.23,3.19033797]
[1767208151199,0.1,125.26,125.23,3.85670991]
[1767208151200,0.76468716,125.26,125.23,3.85670991]
[1767208151495,0.76468716,125.26,125.25,3.19033797]
[1767208151696,0.76468716,125.28,125.25,3.85670991]
[1767208151998,6.64342724,125.29,125.27,3.85670991]
[1767208152198,6.64342724,125.29,125.28,3.19033797]
[1767208153099,0.66468716,125.3,125.28,3.19033797]
[1767208153801,0.66468716,125.3,125.27,3.85670991]
[1767208158125,0.66468716,125.3,125.28,3.19033797]
[1767208158784,0.66468716,125.3,125.28,3.16047973]
[1767208160420,0.66468716,125.3,125.27,3.85670991]
[1767208162018,0.66468716,125.3,125.27,0.66637194]
[1767208162214,0.66468716,125.3,125.28,3.19033797]
[1767208162395,0.66468716,125.3,125.28,3.89013521]
[1767208162596,0.88417815,125.31,125.29,3.19033797]
[1767208163312,0.88417815,125.31,125.28,3.89013521]
[1767208164318,0.68417815,125.3,125.28,3.89013521]
[1767208166028,0.68417815,125.3,125.27,3.19033797]
[1767208166490,0.68417815,125.3,125.27,3.89013521]
[1767208168923,3.19033797,125.28,125.24,3.19033797]
[1767208169219,0.68417815,125.27,125.23,3.89013521]
[1767208169599,0.68417815,125.27,125.23,0.69979724]
[1767208169809,0.68417815,125.27,125.23,3.89013521]
[1767208170029,0.68417815,125.27,125.24,0.69979724]
[1767208171521,0.68417815,125.25,125.22,0.69979724]
[1767208171713,0.68417815,125.25,125.22,3.89013521]
[1767208171916,0.68417815,125.25,125.21,18.49013521]
[1767208172225,0.68417815,125.25,125.22,0.69979724]
[1767208173033,0.68417815,125.25,125.22,3.89013521]
[1767208176440,0.68417815,125.25,125.22,3.19033797]
[1767208176631,5.66779157,125.27,125.23,5.68341066]
[1767208176935,0.68417815,125.27,125.23,5.68341066]
[1767208177544,0.68417815,125.26,125.23,5.68341066]
[1767208179849,0.68417815,125.28,125.25,5.68341066]
[1767208180139,0.68417815,125.28,125.26,5.68341066]
[1767208180341,0.68417815,125.3,125.27,5.68341066]
[1767208180641,0.88417815,125.31,125.29,4.98361342]
[1767208181343,0.88417815,125.31,125.28,4.98361342]
[1767208182527,0.88417815,125.31,125.28,5.68341066]
[1767208183831,0.88417815,125.31,125.28,4.98361342]
[1767208189341,0.2,125.31,125.28,4.98361342]
[1767208189561,0.69961022,125.3,125.28,4.98361342]
[1767208190054,0.69912883,125.28,125.24,0.69664995]
[1767208190267,0.69912883,125.27,125.24,5.68026337]
[1767208190431,5.68274225,125.27,125.24,0.69664995]
[1767208191047,0.69912883,125.25,125.21,5.68026337]
[1767208191754,5.68274225,125.25,125.21,5.68026337]
[1767208192057,0.69912883,125.24,125.21,0.69664995]
[1767208192359,0.69912883,125.24,125.21,5.68026337]
[1767208196354,5.68274225,125.24,125.21,0.69664995]
[1767208203761,5.68274225,125.23,125.19,15.29664995]
[1767208204075,57.44282728,125.27,125.19,0.69664995]
[1767208204076,5.68274225,125.22,125.19,0.69664995]
[1767208204273,0.69912883,125.22,125.19,0.69664995]
[1767208204574,4.98361342,125.22,125.19,0.69664995]
[1767208205781,0.69912883,125.23,125.2,4.98361342]
[1767208206178,0.69912883,125.23,125.21,4.98361342]
[1767208206881,0.69912883,125.23,125.2,5.68026337]
[1767208209177,7.98343718,125.26,125.22,0.69664995]
[1767208209178,0.69912883,125.26,125.22,0.69664995]
[1767208209360,0.69912883,125.25,125.22,5.68026337]
[1767208209561,5.68274225,125.28,125.24,5.68026337]
[1767208209767,5.68274225,125.28,125.2,7.98720814]
[1767208209768,5.93697437,125.27,125.25,5.68026337]
[1767208210080,0.69912883,125.28,125.25,5.68026337]
[1767208210279,0.69912883,125.28,125.26,4.98361342]
[1767208211976,39.4436119,125.3,125.26,4.98361342]
[1767208212176,6.63701652,125.29,125.26,4.98361342]
[1767208212356,5.93788769,125.28,125.26,4.98361342]
[1767208212556,0.69912883,125.29,125.26,4.98361342]
[1767208212757,0.69912883,125.29,125.26,5.68026337]
[1767208212758,5.93614422,125.28,125.26,5.68026337]
[1767208212957,0.69912883,125.29,125.26,5.68026337]
[1767208213159,5.93612809,125.28,125.26,5.68026337]
[1767208213359,0.69912883,125.29,125.26,4.98361342]
[1767208213558,6.63602101,125.28,125.26,4.98361342]
[1767208213859,0.69912883,125.28,125.25,4.98361342]
[1767208214386,0.69912883,125.28,125.25,5.68026337]
[1767208214686,0.69912883,125.3,125.27,4.98361342]
[1767208214857,6.63630154,125.29,125.26,5.68026337]
[1767208215060,0.69912883,125.29,125.26,5.68026337]
[1767208215261,0.69912883,125.29,125.26,4.98361342]
[1767208220091,0.89824455,125.31,125.28,4.98361342]
[1767208220383,0.89824455,125.31,125.29,4.98361342]
[1767208221161,0.2,125.31,125.29,4.98361342]
[1767208221361,35.15824303,125.33,125.3,5.65849358]
[1767208221561,5.93904044,125.32,125.27,0.67488016]
[1767208221774,35.15824303,125.33,125.3,4.98361342]
[1767208221957,5.93891351,125.32,125.29,0.67488016]
[1767208222157,0.69824455,125.32,125.28,5.65849358]
[1767208222988,0.69824455,125.32,125.29,4.98361342]
[1767208230904,0.69824455,125.32,125.28,0.67488016]
[1767208231107,0.69824455,125.32,125.29,4.98361342]
[1767208235177,0.69824455,125.32,125.3,4.98361342]
[1767208236109,0.69824455,125.32,125.29,4.98361342]
[1767208236488,0.69824455,125.32,125.29,3.18603602]
[1767208241325,0.69824455,125.3,125.25,0.67488016]
[1767208241697,0.69824455,125.3,125.26,3.18603602]
[1767208241912,0.69824455,125.3,125.26,3.86091618]
[1767208242313,0.69824455,125.32,125.28,3.86091618]
[1767208242512,0.69824455,125.32,125.29,3.18603602]
[1767208242719,0.69824455,125.32,125.3,3.18603602]
[1767208243004,35.15824303,125.33,125.3,3.86091618]
[1767208243312,0.69824455,125.33,125.3,3.18603602]
[1767208245510,0.69824455,125.34,125.3,3.86091618]
[1767208245825,0.69824455,125.34,125.31,3.18603602]
[1767208246331,0.69824455,125.34,125.3,3.86091618]
[1767208249535,0.69824455,125.34,125.31,3.18603602]
[1767208249831,0.69824455,125.34,125.31,3.86091618]
[1767208250535,0.69824455,125.34,125.31,3.18603602]
[1767208251426,0.69824455,125.34,125.3,3.87136244]
[1767208252410,5.93816347,125.33,125.3,3.87136244]
[1767208252610,0.69824455,125.34,125.3,3.87136244]
[1767208252812,5.93816422,125.33,125.3,3.87136244]
[1767208253011,0.69824455,125.34,125.3,3.87136244]
[1767208253212,6.6172869,125.33,125.3,3.87136244]
[1767208253412,0.67912343,125.33,125.3,3.87136244]
[1767208253707,3.86515945,125.33,125.29,3.87136244]
[1767208254025,0.67912343,125.32,125.29,3.87136244]